fUST/lending_fUST_20250105
["ID","MTS","AMOUNT","RATE_DAILY","PERIOD"]
[347734396,1736087239206,-478.05500604,0.00022197,2]
[347734397,1736087239228,-244.2410072,0.00022596,2]
[347734398,1736087239249,-326.66287761,0.00022732,2]
[347734399,1736087239270,-378.24412484,0.00022732,2]
[347734400,1736087239293,-408.25625815,0.00022738,3]
[347734401,1736087239315,-1200.0,0.00022738,2]
[347734402,1736087239339,-789.81,0.00022739,3]
[347734403,1736087239362,-756.9,0.00022739,3]
[347734404,1736087239385,-500.0,0.00022739,3]
[347734405,1736087239408,-160.44069323,0.00022743,2]
[347734406,1736087239430,-1000.0,0.00022821,35]
[347734407,1736087239452,-151.0,0.00022822,7]
[347734408,1736087239474,-151.0,0.00022822,7]
[347734409,1736087239495,-151.0,0.00022822,7]
[347734410,1736087239517,-198.36019122,0.00022824,2]
[347734411,1736087239539,-150.08,0.00022825,10]
[347734412,1736087239564,-500.0,0.00022825,2]
[347734413,1736087239587,-234.660956,0.00022827,7]
[347734414,1736087239608,-263.21386735,0.00022831,2]
[347734415,1736087239634,-185.08959527,0.00022831,2]
[347734416,1736087239656,-210.84492551,0.00022832,2]
[347734417,1736087239681,-36645.47008493,0.00022832,2]
[347734418,1736087239715,-151.0,0.00022832,7]
[347734419,1736087239737,-151.0,0.00022832,7]
[347734420,1736087239757,-204.060675,0.00022832,7]
[347734421,1736087239778,-204.060675,0.00022832,7]
[347734422,1736087239800,-204.060675,0.00022832,7]
[347734423,1736087239821,-204.060675,0.00022832,7]
[347734424,1736087239842,-204.060675,0.00022832,7]
[347734425,1736087239864,-204.060675,0.00022832,7]
[347734426,1736087239886,-204.060675,0.00022832,7]
[347734427,1736087239913,-204.060675,0.00022832,7]
[347734428,1736087239936,-204.060675,0.00022832,7]
[347734429,1736087239958,-204.060675,0.00022832,7]
[347734430,1736087239981,-204.060675,0.00022832,7]
[347734431,1736087240004,-204.060675,0.00022832,7]
[347734432,1736087240027,-204.060675,0.00022832,7]
[347734433,1736087240050,-204.060675,0.00022832,7]
[347734434,1736087240073,-204.060675,0.00022832,7]
[347734435,1736087240096,-204.060675,0.00022832,7]
[347734436,1736087240120,-204.060675,0.00022832,7]
[347734437,1736087240144,-204.060675,0.00022832,7]
[347734438,1736087240169,-204.060675,0.00022832,7]
[347734439,1736087240191,-204.060671,0.00022832,7]
[347734440,1736087240213,-151.0,0.00022832,7]
[347734441,1736087240235,-151.0,0.00022832,7]
[347734442,1736087240257,-151.0,0.00022832,7]
[347734443,1736087240279,-151.0,0.00022832,7]
[347734444,1736087240302,-151.0,0.00022832,7]
[347734445,1736087240324,-187.099984,0.00022832,7]
[347734446,1736087240347,-187.099984,0.00022832,7]
[347734447,1736087240370,-187.099984,0.00022832,7]
[347734448,1736087240392,-187.099984,0.00022832,7]
[347734449,1736087240425,-187.099984,0.00022832,7]
[347734450,1736087240450,-187.099984,0.00022832,7]
[347734451,1736087240474,-187.099984,0.00022832,7]
[347734452,1736087240500,-187.099984,0.00022832,7]
[347734453,1736087240527,-187.099984,0.00022832,7]
[347734454,1736087240560,-187.099984,0.00022832,7]
[347734455,1736087240586,-187.099984,0.00022832,7]
[347734456,1736087240611,-187.099984,0.00022832,7]
[347734457,1736087240637,-187.099984,0.00022832,7]
[347734458,1736087240668,-187.099984,0.00022832,7]
[347734459,1736087240694,-151.0,0.00022832,7]
[347734460,1736087240722,-187.099984,0.00022832,7]
[347734461,1736087240747,-151.0,0.00022832,7]
[347734462,1736087240771,-187.099984,0.00022832,7]
[347734463,1736087240795,-151.0,0.00022832,7]
[347734464,1736087240821,-187.099984,0.00022832,7]
[347734465,1736087240848,-151.0,0.00022832,7]
[347734466,1736087240971,-187.099984,0.00022832,7]
[347734467,1736087240995,-151.0,0.00022832,7]
[347734468,1736087241018,-187.099984,0.00022832,7]
[347734469,1736087241041,-151.0,0.00022832,7]
[347734470,1736087241064,-187.09998,0.00022832,7]
[347734471,1736087241088,-265.30056,0.00022832,7]
[347734472,1736087241110,-166.537,0.00022847,2]
[347734473,1736087241133,-598.15850248,0.00022873,2]
[347734474,1736087241157,-500.6281377,0.00022873,2]
[347734475,1736087241179,-500.41361757,0.00022873,2]
[347734476,1736087241200,-501.22744484,0.00022873,2]
[347734477,1736087241221,-500.8326971,0.00022873,2]
[347734478,1736087241244,-2879.18625249,0.000229,2]
[347734479,1736087241279,-499.6684972,0.00019998,3]
[347734480,1736087241312,-4748.12374751,0.000229,2]
[347734481,1736087241331,-4152.41,0.000229,14]
[347734482,1736087241352,-9999.1,0.000229,14]
[347734483,1736087241372,-243.89459927,0.00023,2]
[347734484,1736087241392,-674.00394202,0.00023,2]
[347734485,1736087245105,-500.0,0.00019178,2]
[347734486,1736087245129,-500.0,0.00019452,3]
[347734487,1736087245150,-500.0,0.00019998,3]
[347734488,1736087245174,-533.24,0.00019999,3]
[347734489,1736087245207,-32836.13543217,0.00023,2]
[347734490,1736087245227,-261.32418922,0.00023,2]
[347734491,1736087245255,-150.0,0.00023,2]
[347734492,1736087245275,-585.0,0.00023,2]
[347734493,1736087245296,-200.0,0.00023,2]
[347734494,1736087245318,-500.0,0.00023011,3]
[347734495,1736087245339,-2420.93,0.00023012,3]
[347734496,1736087245361,-789.81,0.00023013,3]
[347734497,1736087245384,-756.9,0.00023013,3]
[347734498,1736087245406,-150.08,0.00023099,10]
[347734499,1736087245428,-500.0,0.00023285,3]
[347734500,1736087245450,-2420.93,0.00023286,3]
[347734501,1736087245470,-674.34,0.00023287,3]
[347734502,1736087245493,-789.81,0.00023287,3]
[347734503,1736087245516,-756.9,0.00023287,3]
[347734504,1736087245537,-6211.0,0.00023328,7]
[347734505,1736087245561,-199.84,0.00023373,10]
[347734506,1736087245582,-585.0,0.00023374,2]
[347734507,1736087245609,-500.0,0.00023559,3]
[347734508,1736087245632,-2420.93,0.0002356,3]
[347734509,1736087245652,-674.34,0.00023561,3]
[347734510,1736087245679,-789.81,0.00023561,3]
[347734511,1736087245702,-756.9,0.00023561,3]
[347734512,1736087245727,-153.26,0.000236,31]
[347734513,1736087245752,-153.26,0.000236,31]
[347734514,1736087245775,-153.26,0.000236,31]
[347734515,1736087245798,-153.26,0.000236,31]
[347734516,1736087245821,-153.26,0.000236,31]
[347734517,1736087245845,-153.26,0.000236,31]
[347734518,1736087245869,-153.26,0.000236,31]
[347734519,1736087245895,-153.26,0.000236,31]
[347734520,1736087245920,-153.26,0.000236,31]
[347734521,1736087245946,-153.26,0.000236,31]
[347734522,1736087245972,-153.26,0.000236,31]
[347734523,1736087245998,-153.26,0.000236,31]
[347734524,1736087246025,-153.26,0.000236,31]
[347734525,1736087246051,-153.26,0.000236,31]
[347734526,1736087246078,-153.26,0.000236,31]
[347734527,1736087246102,-153.26,0.000236,31]
[347734528,1736087246128,-153.26,0.000236,31]
[347734529,1736087246154,-153.26,0.000236,31]
[347734530,1736087246177,-416.62,0.00023727,2]
[347734531,1736087246202,-500.0,0.00023833,3]
[347734532,1736087246224,-2420.93,0.00023834,3]
[347734533,1736087246246,-674.34,0.00023835,3]
[347734534,1736087246270,-789.81,0.00023835,3]
[347734535,1736087246295,-756.9,0.00023835,3]
[347734536,1736087246317,-500.0,0.00023966,2]
[347734537,1736087246339,-30041.50500137,0.00024,2]
[347734538,1736087246361,-897.62699805,0.00024,60]
[347734539,1736087246381,-394.0,0.00024067,2]
[347734540,1736087246404,-500.0,0.00024107,3]
[347734541,1736087246426,-2420.93,0.00024108,3]
[347734542,1736087246449,-674.34,0.00024109,3]
[347734543,1736087246472,-789.81,0.00024109,3]
[347734544,1736087246494,-183.005755,0.0002411,2]
[347734545,1736087246516,-183.005755,0.0002411,41]
[347734546,1736087246536,-183.005755,0.0002411,80]
[347734547,1736087246562,-183.005755,0.0002411,119]
[347734548,1736087246583,-150.0,0.00024164,2]
[347734549,1736087246604,-585.0,0.00024255,2]
[347734550,1736087246628,-500.0,0.00024381,3]
[347734551,1736087246650,-2420.93,0.00024382,3]
[347734552,1736087246672,-674.34,0.00024383,3]
[347734553,1736087246693,-2937.90429063,0.000245,2]
[347734554,1736087246715,-9181.64664923,0.00024527,30]
[347734555,1736087246736,-935.11995333,0.0002455,5]
[347734572,1736087405794,181.3871,0.00025,120]
[347734611,1736087435930,-500.0,0.00019178,2]
[347734612,1736087435941,-399.42,0.000192,2]
[347734613,1736087435951,-500.0,0.00019452,3]
[347734614,1736087435960,-500.0,0.00019724,3]
[347734615,1736087435971,-500.0,0.00019724,3]
[347734616,1736087435980,-500.0,0.00019724,3]
[347734617,1736087435990,-500.0,0.00019725,3]
[347734618,1736087435999,-500.0,0.00019726,3]
[347734619,1736087436008,-300.0,0.00019996,2]
[347734620,1736087436017,-500.0,0.00019997,3]
[347734621,1736087436027,-500.0,0.00019997,3]
[347734623,1736087436037,-500.0,0.00019997,3]
[347734625,1736087436046,-500.0,0.00019997,3]
[347734626,1736087436056,-500.0,0.00019997,3]
[347734627,1736087436065,-500.0,0.00019997,3]
[347734628,1736087436075,-500.0,0.00019997,3]
[347734630,1736087436089,-500.0,0.00019997,3]
[347734632,1736087436099,-500.0,0.00019997,3]
[347734633,1736087436109,-523.15807087,0.00019997,3]
[347734634,1736087436119,-500.0,0.00019997,3]
[347734635,1736087436128,-500.0,0.00019997,3]
[347734636,1736087436138,-500.0,0.00019997,3]
[347734637,1736087436148,-500.0,0.00019997,3]
[347734638,1736087436158,-500.0,0.00019997,3]
[347734639,1736087436168,-500.0,0.00019997,3]
[347734640,1736087436178,-229.16,0.00019997,3]
[347734641,1736087436188,-500.0,0.00019997,3]
[347734642,1736087436197,-500.0,0.00019997,3]
[347734643,1736087436375,-500.0,0.00019997,3]
[347734644,1736087436389,-500.0,0.00019997,3]
[347734645,1736087436399,-500.0,0.00019997,3]
[347734646,1736087436409,-500.0,0.00019997,3]
[347734647,1736087436418,-500.0,0.00019997,3]
[347734648,1736087436428,-500.0,0.00019997,3]
[347734649,1736087436438,-500.0,0.00019997,3]
[347734650,1736087436447,-500.0,0.00019997,3]
[347734651,1736087436456,-500.0,0.00019997,3]
[347734652,1736087436466,-500.0,0.00019997,3]
[347734653,1736087436476,-500.0,0.00019997,3]
[347734654,1736087436485,-500.0,0.00019997,3]
[347734655,1736087436496,-500.0,0.00019997,3]
[347734656,1736087436506,-500.0,0.00019997,3]
[347734657,1736087436516,-500.0,0.00019997,3]
[347734658,1736087436526,-500.0,0.00019997,3]
[347734659,1736087436536,-500.0,0.00019997,3]
[347734660,1736087436545,-500.0,0.00019997,3]
[347734661,1736087436555,-500.0,0.00019997,3]
[347734662,1736087436565,-500.0,0.00019997,3]
[347734663,1736087436575,-524.79617324,0.00019997,3]
[347734664,1736087436588,-500.0,0.00019997,3]
[347734665,1736087436598,-500.0,0.00019997,3]
[347734666,1736087436608,-500.0,0.00019997,3]
[347734667,1736087436616,-500.0,0.00019997,3]
[347734668,1736087436626,-500.0,0.00019997,3]
[347734669,1736087436635,-500.0,0.00019997,3]
[347734670,1736087436645,-500.0,0.00019997,3]
[347734671,1736087436655,-500.0,0.00019997,3]
[347734672,1736087436664,-500.0,0.00019997,3]
[347734673,1736087436674,-500.0,0.00019997,3]
[347734674,1736087436685,-1097.07,0.00019997,3]
[347734675,1736087436695,-500.0,0.00019997,3]
[347734676,1736087436704,-500.0,0.00019997,3]
[347734677,1736087436713,-500.0,0.00019997,3]
[347734678,1736087436723,-500.0,0.00019997,3]
[347734679,1736087436734,-195.91877469,0.00019997,3]
[347734680,1736087436744,-500.0,0.00019997,3]
[347734681,1736087436754,-500.0,0.00019997,3]
[347734682,1736087436763,-500.0,0.00019997,3]
[347734683,1736087436772,-500.0,0.00019997,3]
[347734684,1736087436782,-500.0,0.00019997,3]
[347734685,1736087436791,-253.76624793,0.00019997,3]
[347734686,1736087436800,-500.0,0.00019997,3]
[347734687,1736087436809,-500.0,0.00019997,3]
[347734688,1736087436818,-500.0,0.00019997,3]
[347734689,1736087436831,-500.0,0.00019998,3]
[347734690,1736087436840,-500.0,0.00019998,3]
[347734691,1736087436849,-209.39,0.00019998,3]
[347734692,1736087436859,-500.0,0.00019998,3]
[347734693,1736087436869,-500.0,0.00019998,3]
[347734694,1736087436879,-500.0,0.00019998,3]
[347734695,1736087436889,-502.51035047,0.00019998,3]
[347734696,1736087436898,-266.75211091,0.00019998,3]
[347734697,1736087436908,-500.0,0.0002,3]
[347734698,1736087436917,-500.0,0.0002027,3]
[347734699,1736087436927,-500.0,0.0002027,3]
[347734700,1736087436938,-571.16,0.00020271,3]
[347734701,1736087436948,-500.0,0.00020271,3]
[347734702,1736087436958,-500.0,0.00020271,3]
[347734703,1736087436967,-500.0,0.00020271,3]
[347734704,1736087436976,-500.0,0.00020271,3]
[347734705,1736087436986,-500.0,0.00020271,3]
[347734706,1736087436996,-500.0,0.00020271,3]
[347734707,1736087437006,-500.0,0.00020271,3]
[347734708,1736087437016,-500.0,0.00020271,3]
[347734709,1736087437026,-500.0,0.00020271,3]
[347734710,1736087437036,-500.0,0.00020271,3]
[347734711,1736087437045,-500.0,0.00020271,3]
[347734712,1736087437055,-500.0,0.00020271,3]
[347734713,1736087437064,-500.0,0.00020271,3]
[347734714,1736087437074,-500.0,0.00020271,3]
[347734715,1736087437085,-500.0,0.00020271,3]
[347734716,1736087437095,-500.0,0.00020271,3]
[347734717,1736087437105,-601.53,0.00020271,3]
[347734718,1736087437114,-500.0,0.00020271,3]
[347734719,1736087437123,-500.0,0.00020271,3]
[347734720,1736087437133,-500.0,0.00020271,3]
[347734721,1736087437142,-500.0,0.00020271,3]
[347734722,1736087437152,-500.91162357,0.00020271,3]
[347734723,1736087437162,-500.0,0.00020271,3]
[347734724,1736087437171,-500.0,0.00020271,3]
[347734725,1736087437181,-500.0,0.00020271,3]
[347734726,1736087437191,-500.0,0.00020271,3]
[347734727,1736087437201,-500.0,0.00020271,3]
[347734728,1736087437211,-500.0,0.00020271,3]
[347734729,1736087437220,-500.0,0.00020271,3]
[347734730,1736087437230,-500.0,0.00020271,3]
[347734731,1736087437239,-500.0,0.00020271,3]
[347734732,1736087437249,-500.0,0.00020271,3]
[347734733,1736087437259,-1097.07,0.00020271,3]
[347734734,1736087437268,-500.0,0.00020271,3]
[347734735,1736087437278,-484.49126719,0.00020271,3]
[347734736,1736087437287,-500.0,0.00020271,3]
[347734737,1736087437297,-500.0,0.00020271,3]
[347734738,1736087437306,-500.0,0.00020271,3]
[347734739,1736087437315,-500.0,0.00020271,3]
[347734740,1736087437327,-546.18,0.00020271,3]
[347734741,1736087437339,-509.65,0.00020271,3]
[347734742,1736087437348,-500.0,0.00020272,3]
[347734743,1736087437357,-500.0,0.00020272,3]
[347734744,1736087437367,-500.0,0.00020273,3]
[347734746,1736087437377,-500.0,0.00020544,3]
[347734748,1736087437387,-500.0,0.00020545,3]
[347734749,1736087437396,-500.0,0.00020545,3]
[347734750,1736087437406,-500.0,0.00020545,3]
[347734752,1736087437416,-563.22,0.00020545,3]
[347734754,1736087437426,-500.0,0.00020545,3]
[347734755,1736087437435,-1097.07,0.00020545,3]
[347734756,1736087437445,-500.0,0.00020545,3]
[347734757,1736087437455,-500.0,0.00020545,3]
[347734759,1736087437464,-500.0,0.00020545,3]
[347734762,1736087437474,-500.0,0.00020545,3]
[347734764,1736087437483,-500.0,0.00020546,3]
[347734766,1736087437492,-500.0,0.00020546,3]
[347734767,1736087437501,-500.0,0.00020547,3]
[347734768,1736087437511,-233.69,0.00020818,3]
[347734769,1736087437521,-500.0,0.00020818,3]
[347734770,1736087437531,-335.92,0.00020819,3]
[347734771,1736087437539,-1097.07,0.00020819,3]
[347734772,1736087437549,-500.0,0.0002082,3]
[347734773,1736087437559,-295.4,0.0002082,3]
[347734774,1736087437568,-500.0,0.0002082,3]
[347734775,1736087437578,-500.0,0.00020821,3]
[347734776,1736087437588,-500.0,0.00021067,3]
[347734777,1736087437598,-500.0,0.00021092,3]
[347734778,1736087437607,-621.68981523,0.00021093,3]
[347734780,1736087437621,-376.50003,0.00021093,3]
[347734781,1736087437632,-98.88015477,0.00021093,3]
[347734782,1736087437642,-500.0,0.00021094,3]
[347734783,1736087437652,-334.62984523,0.00021095,3]
[347734785,1736087437663,-165.37015477,0.00021095,3]
[347734787,1736087437673,-500.0,0.00021366,3]
[347734788,1736087437683,-1097.07,0.00021367,3]
[347734789,1736087437692,-500.0,0.00021368,3]
[347734790,1736087437702,-409.65,0.00021369,3]
[347734791,1736087437712,-500.0,0.0002164,3]
[347734792,1736087437722,-1097.07,0.00021641,3]
[347734793,1736087437731,-500.0,0.00021642,3]
[347734794,1736087437740,-420.0,0.00021774,2]
[347734795,1736087437749,-150.0,0.000219,2]
[347734796,1736087437759,-312.68,0.00021914,3]
[347734797,1736087437769,-1097.07,0.00021915,3]
[347734798,1736087437778,-500.0,0.00021916,3]
[347734800,1736087437788,-160.7842876,0.0002201,16]
[347734802,1736087437798,-1097.07,0.00022189,3]
[347734804,1736087437807,-500.0,0.0002219,3]
[347734806,1736087437817,-1097.07,0.00022463,3]
[347734808,1736087437826,-555.3382805,0.00022464,3]
[347734809,1736087437839,-500.0,0.00022534,3]
[347734811,1736087437849,-153.31,0.000226,31]
[347734813,1736087437858,-153.31,0.000226,31]
[347734815,1736087437868,-153.31,0.000226,31]
[347734816,1736087437877,-153.31,0.000226,31]
[347734818,1736087437887,-153.31,0.000226,31]
[347734820,1736087437896,-153.31,0.000226,31]
[347734822,1736087437906,-153.31,0.000226,31]
[347734824,1736087437916,-153.31,0.000226,31]
[347734826,1736087437926,-153.31,0.000226,31]
[347734827,1736087437939,-153.31,0.000226,31]
[347734828,1736087437951,-2395.00546235,0.00022732,2]
[347734829,1736087437961,-1097.07,0.00022737,3]
[347734830,1736087437971,-500.0,0.0002282,3]
[347734831,1736087437980,-500.0,0.0002282,3]
[347734832,1736087437990,-500.0,0.0002282,3]
[347734833,1736087437999,-500.0,0.0002282,3]
[347734834,1736087438009,-500.0,0.0002282,3]
[347734835,1736087438018,-500.0,0.0002282,3]
[347734837,1736087438028,-500.0,0.0002282,3]
[347734839,1736087438037,-500.0,0.0002282,3]
[347734841,1736087438047,-500.0,0.0002282,3]
[347734843,1736087438056,-500.0,0.0002282,3]
[347734845,1736087438067,-500.0,0.0002282,3]
[347734846,1736087438077,-500.0,0.0002282,3]
[347734847,1736087438089,-500.0,0.0002282,3]
[347734848,1736087438098,-500.0,0.0002282,3]
[347734849,1736087438108,-566.08,0.0002282,3]
[347734850,1736087438119,-431.0,0.0002282,9]
[347734851,1736087438128,-151.0,0.00022832,7]
[347734852,1736087438138,-151.0,0.00022832,7]
[347734853,1736087438148,-151.0,0.00022832,7]
[347734854,1736087438158,-151.0,0.00022832,7]
[347734855,1736087438167,-151.0,0.00022832,7]
[347734856,1736087438177,-151.0,0.00022832,7]
[347734857,1736087438186,-151.0,0.00022832,7]
[347734858,1736087438196,-151.0,0.00022832,7]
[347734859,1736087438206,-199.86,0.00022832,10]
[347734860,1736087438216,-151.0,0.00022832,7]
[347734861,1736087438225,-184.24970714,0.00022837,2]
[347734862,1736087438235,-210.84492552,0.00022838,2]
[347734863,1736087438244,-18322.73504247,0.00022838,2]
[347734864,1736087438254,-4252.18213965,0.00022838,10]
[347735119,1736087442050,-26768.116227,0.00022838,10]
[347735127,1736087442109,-180000.0000001,0.00022838,10]
[347735129,1736087442120,-674.62973335,0.00022838,10]
[347735131,1736087442132,-27929.25369308,0.00022838,10]
[347735133,1736087442142,-97433.05230838,0.00022838,10]
[347735135,1736087442154,-3327.2034204,0.00022838,10]
[347735137,1736087442166,-4188.1554701,0.00022838,10]
[347735140,1736087442178,-3212.10862785,0.00022838,10]
[347735175,1736087442488,-581.65499999,0.00022838,10]
[347735178,1736087442499,-31356.1606228,0.00022838,10]
[347735280,1736087443623,-500.0,0.00019997,3]
[347735282,1736087443634,-12901.741726,0.00022838,10]
[347735285,1736087443645,-4954.26990701,0.00022838,10]
[347735287,1736087443657,-1865.72,0.00022838,10]
[347735289,1736087443668,-381783.24791454,0.00022838,10]
[347735575,1736087446378,-500.0,0.00019997,3]
[347735577,1736087446388,-16064.528598,0.00022838,10]
[347735580,1736087446400,-9996.09839999,0.00022838,10]
[347735582,1736087446411,-93792.57142355,0.00022838,10]
[347735584,1736087446421,-64981.24310045,0.00022838,10]
[347735730,1736087448054,-347.80364614,0.00019997,3]
[347735731,1736087448063,-578.63357755,0.00019997,3]
[347735733,1736087448073,-500.0,0.00019998,3]
[347735735,1736087448082,-10212.65551718,0.00022838,10]
[347735738,1736087448096,-500.0,0.00022838,10]
[347735740,1736087448108,-500.84842411,0.00022838,10]
[347735748,1736087448174,-2257.466754,0.00022838,10]
[347735750,1736087448185,-3323.04491963,0.00022838,10]
[347735752,1736087448197,-2439.97453965,0.00022838,10]
[347735754,1736087448209,-21395.99975,0.00022838,10]
[347735756,1736087448220,-974.9854,0.00022838,10]
[347738627,1736087733702,234.375512,0.00013973,2]
[347738637,1736088359443,5851.3,0.00025,120]
[347738639,1736088435103,-151.16748709,0.00018491,2]
[347738640,1736088435129,-202.727589,0.00018998,2]
[347738641,1736088435153,-408.36,0.00019101,2]
[347738642,1736088435181,-160.550993,0.00019178,2]
[347738643,1736088435205,-359.47,0.000192,2]
[347738644,1736088435233,-500.0,0.00019725,3]
[347738645,1736088435259,-500.0,0.00019725,3]
[347738646,1736088435432,-500.0,0.00019725,3]
[347738647,1736088435454,-500.0,0.00019725,3]
[347738648,1736088435476,-300.0,0.00019899,2]
[347738649,1736088435497,-318.66681699,0.000199,2]
[347738650,1736088435520,-2759.79206524,0.000199,2]
[347738651,1736088435541,-500.0,0.00019997,3]
[347738652,1736088435562,-500.0,0.00019997,3]
[347738653,1736088435584,-500.0,0.00019997,3]
[347738654,1736088435606,-500.0,0.00019997,3]
[347738655,1736088435628,-500.0,0.00019997,3]
[347738656,1736088435650,-500.0,0.00019997,3]
[347738657,1736088435673,-500.0,0.00019997,3]
[347738658,1736088435695,-500.0,0.00019997,3]
[347738659,1736088435718,-500.0,0.00019997,3]
[347738660,1736088435741,-500.0,0.00019997,3]
[347738661,1736088435763,-500.0,0.00019997,3]
[347738662,1736088435785,-500.0,0.00019997,3]
[347738663,1736088435808,-500.0,0.00019997,3]
[347738664,1736088435828,-262.16456001,0.00019998,3]
[347738665,1736088435849,-500.0,0.00019998,3]
[347738666,1736088435870,-500.0,0.00019998,3]
[347738667,1736088435891,-500.0,0.00019998,3]
[347738668,1736088435913,-500.0,0.00019998,3]
[347738669,1736088435933,-559.31996897,0.00019998,3]
[347738670,1736088435955,-500.0,0.00019998,3]
[347738671,1736088435979,-500.0,0.00019998,3]
[347738672,1736088436007,-393.66473661,0.00019998,3]
[347738673,1736088436032,-500.0,0.00019998,3]
[347738674,1736088436054,-500.0,0.00019998,2]
[347738675,1736088436076,-500.0,0.00019998,3]
[347738676,1736088436099,-500.0,0.00019999,3]
[347738677,1736088436121,-267.46,0.00019999,3]
[347738678,1736088436143,-500.0,0.00019999,3]
[347738679,1736088436164,-500.0,0.00019999,2]
[347738680,1736088436187,-500.0,0.00019999,3]
[347738681,1736088436209,-183.92762567,0.0002,2]
[347738682,1736088436234,-161.368,0.0002,2]
[347738683,1736088436256,-7929.0,0.0002,3]
[347738684,1736088436277,-3964.0,0.0002,3]
[347738685,1736088436301,-3964.0,0.0002,3]
[347738686,1736088436322,-3964.0,0.0002,3]
[347738687,1736088436344,-3182.4157322,0.0002,3]
[347738735,1736088632319,-300.0,0.00019083,2]
[347738736,1736088632329,-638.746023,0.00019084,2]
[347738761,1736088638185,-24241.253977,0.00019084,2]
[347738762,1736088638195,-323.53,0.000192,2]
[347738763,1736088638205,-150.0,0.0001941,2]
[347738764,1736088638214,-500.0,0.00019997,3]
[347738765,1736088638224,-500.0,0.00019997,3]
[347738766,1736088638235,-500.0,0.00019997,3]
[347738767,1736088638245,-500.0,0.00019997,3]
[347738768,1736088638254,-500.0,0.00019997,3]
[347738769,1736088638264,-500.0,0.00019997,3]
[347738770,1736088638274,-500.0,0.00019997,3]
[347738771,1736088638283,-500.0,0.00019997,3]
[347738772,1736088638292,-500.0,0.00019997,3]
[347738773,1736088638302,-500.0,0.00019997,3]
[347738774,1736088638322,-500.0,0.00019997,3]
[347738775,1736088638333,-500.0,0.00019997,3]
[347738776,1736088638343,-500.0,0.00019997,3]
[347738777,1736088638354,-500.0,0.00019997,3]
[347738778,1736088638367,-500.0,0.00019997,3]
[347738779,1736088638377,-206.82,0.00019997,3]
[347738780,1736088638387,-500.0,0.00019997,3]
[347738781,1736088638397,-500.0,0.00019998,3]
[347738782,1736088638408,-504.37229014,0.00019998,3]
[347738783,1736088638417,-500.0,0.00019998,3]
[347738784,1736088638426,-501.31531326,0.00019998,3]
[347738785,1736088638436,-500.0,0.00019998,3]
[347738786,1736088638447,-500.0,0.00019998,3]
[347738787,1736088638456,-500.0,0.00019998,3]
[347738788,1736088638466,-500.0,0.00019998,3]
[347738789,1736088638476,-500.0,0.00019998,3]
[347738790,1736088638486,-500.0,0.00019998,3]
[347738791,1736088638495,-500.0,0.00019998,3]
[347738792,1736088638505,-500.0,0.00019998,3]
[347738793,1736088638515,-500.0,0.00019999,3]
[347738794,1736088638525,-781.5842678,0.0002,3]
[347738795,1736088638534,-2448.0021065,0.0002,2]